[Event "*** Titled Tuesday Blitz"]
[Site "Chess.com"]
[Date "2020.11.10"]
[Round "10"]
[White "Michaelson_11"]
[Black "rugbyclub"]
[Result "0-1"]
[WhiteElo "2096"]
[BlackElo "2195"]
[TimeControl "180+1"]
[EndTime "12:02:13 PST"]
[Termination "rugbyclub won on time"]

1. e4 {[%clk 0:03:00.9]} 1... e6 {[%clk 0:02:59.8]} 2. d4 {[%clk 0:02:53.4]}
2... d5 {[%clk 0:02:59.7]} 3. Nc3 {[%clk 0:02:52.3]} 3... Bb4 {[%clk 0:02:59.3]}
4. e5 {[%clk 0:02:47]} 4... Ne7 {[%clk 0:02:57.8]} 5. a3 {[%clk 0:02:46.3]} 5...
Bxc3+ {[%clk 0:02:56.9]} 6. bxc3 {[%clk 0:02:47.2]} 6... b6 {[%clk 0:02:50.8]}
7. Qg4 {[%clk 0:02:44]} 7... Ng6 {[%clk 0:02:50.4]} 8. h4 {[%clk 0:02:42.1]}
8... h5 {[%clk 0:02:49.6]} 9. Qg3 {[%clk 0:02:36.8]} 9... Ba6 {[%clk 0:02:48.8]}
10. Bd3 {[%clk 0:02:20.1]} 10... Bxd3 {[%clk 0:02:38.4]} 11. cxd3 {[%clk
0:02:15.3]} 11... Qd7 {[%clk 0:02:28.9]} 12. Ne2 {[%clk 0:02:10.9]} 12... Nc6
{[%clk 0:02:25]} 13. O-O {[%clk 0:02:10.2]} 13... Nce7 {[%clk 0:02:19.8]} 14.
Bg5 {[%clk 0:01:56]} 14... Nf5 {[%clk 0:02:19]} 15. Qh3 {[%clk 0:01:55.8]} 15...
Rc8 {[%clk 0:02:02.5]} 16. Nf4 {[%clk 0:01:41.9]} 16... Nxf4 {[%clk 0:01:52]}
17. Bxf4 {[%clk 0:01:42.8]} 17... c5 {[%clk 0:01:51.4]} 18. dxc5 {[%clk
0:01:40.5]} 18... Rxc5 {[%clk 0:01:48.1]} 19. d4 {[%clk 0:01:39.2]} 19... Rc4
{[%clk 0:01:47.2]} 20. Rfc1 {[%clk 0:01:37.5]} 20... O-O {[%clk 0:01:41.6]} 21.
g4 {[%clk 0:01:33.3]} 21... hxg4 {[%clk 0:01:40.8]} 22. Qxg4 {[%clk 0:01:34.2]}
22... Rfc8 {[%clk 0:01:25.3]} 23. Bd2 {[%clk 0:01:25.2]} 23... Qe7 {[%clk
0:01:07.2]} 24. h5 {[%clk 0:01:16.5]} 24... Qh4 {[%clk 0:00:55.6]} 25. Qxh4
{[%clk 0:01:01.8]} 25... Nxh4 {[%clk 0:00:53.3]} 26. Kf1 {[%clk 0:01:01.1]}
26... Kh7 {[%clk 0:00:43.2]} 27. Ke2 {[%clk 0:00:58.6]} 27... Nf5 {[%clk
0:00:30.2]} 28. Kd3 {[%clk 0:00:54]} 28... Rh8 {[%clk 0:00:22.8]} 29. Rh1 {[%clk
0:00:47.7]} 29... Kg8 {[%clk 0:00:22.9]} 30. a4 {[%clk 0:00:34.4]} 30... f6
{[%clk 0:00:21.7]} 31. exf6 {[%clk 0:00:32.9]} 31... gxf6 {[%clk 0:00:21.4]} 32.
a5 {[%clk 0:00:32.5]} 32... b5 {[%clk 0:00:20.4]} 33. a6 {[%clk 0:00:30]} 33...
Kf7 {[%clk 0:00:20.3]} 0-1

[Event "*** Titled Tuesday Blitz"]
[Site "Chess.com"]
[Date "2020.11.10"]
[Round "10"]
[White "RD4ever"]
[Black "NikolaGry"]
[Result "1-0"]
[WhiteElo "2825"]
[BlackElo "2647"]
[TimeControl "180+1"]
[EndTime "12:02:14 PST"]
[Termination "RD4ever won on time"]

1. e4 {[%clk 0:03:00.9]} 1... e5 {[%clk 0:02:59.6]} 2. Nf3 {[%clk 0:03:00.7]}
2... d6 {[%clk 0:02:59.9]} 3. d4 {[%clk 0:02:58.3]} 3... exd4 {[%clk 0:03:00]}
4. Qxd4 {[%clk 0:02:55.4]} 4... Nc6 {[%clk 0:02:59.6]} 5. Bb5 {[%clk 0:02:55]}
5... Ne7 {[%clk 0:02:59.6]} 6. Qe3 {[%clk 0:02:52]} 6... a6 {[%clk 0:02:54.3]}
7. Bc4 {[%clk 0:02:51.2]} 7... Be6 {[%clk 0:02:37.6]} 8. Na3 {[%clk 0:02:41.5]}
8... Bxc4 {[%clk 0:02:26.7]} 9. Nxc4 {[%clk 0:02:42.4]} 9... d5 {[%clk
0:02:25.8]} 10. Ncd2 {[%clk 0:02:21.9]} 10... Qd6 {[%clk 0:02:08.2]} 11. O-O
{[%clk 0:01:44]} 11... O-O-O {[%clk 0:02:06.9]} 12. c3 {[%clk 0:01:36.7]} 12...
h6 {[%clk 0:02:02.8]} 13. b4 {[%clk 0:01:27.8]} 13... g5 {[%clk 0:01:59.7]} 14.
a4 {[%clk 0:01:26.9]} 14... Bg7 {[%clk 0:01:44.5]} 15. b5 {[%clk 0:01:25.4]}
15... Ne5 {[%clk 0:01:43.4]} 16. Ba3 {[%clk 0:01:20.8]} 16... Qe6 {[%clk
0:01:28.8]} 17. Nd4 {[%clk 0:01:17.8]} 17... Qg6 {[%clk 0:01:26]} 18. Bxe7
{[%clk 0:01:16.4]} 18... Rde8 {[%clk 0:01:25.8]} 19. Nf5 {[%clk 0:01:11.7]}
19... dxe4 {[%clk 0:01:20]} 20. Qxe4 {[%clk 0:01:06.4]} 20... Nd7 {[%clk
0:01:14]} 21. Nxg7 {[%clk 0:01:01.6]} 21... Qxe4 {[%clk 0:01:10.1]} 22. Nxe4
{[%clk 0:01:01.1]} 22... Rxe7 {[%clk 0:01:10.1]} 23. Ng3 {[%clk 0:00:58.8]}
23... h5 {[%clk 0:01:07.4]} 24. N7xh5 {[%clk 0:00:58.1]} 24... Nc5 {[%clk
0:00:49.9]} 25. Nf6 {[%clk 0:00:52.3]} 25... Re6 {[%clk 0:00:44.8]} 26. Nd5
{[%clk 0:00:51.2]} 26... Rd8 {[%clk 0:00:43.8]} 27. c4 {[%clk 0:00:50.5]} 27...
c6 {[%clk 0:00:39.2]} 28. bxc6 {[%clk 0:00:48.7]} 28... bxc6 {[%clk 0:00:39.5]}
29. Nb6+ {[%clk 0:00:49.4]} 29... Kc7 {[%clk 0:00:38.8]} 30. a5 {[%clk
0:00:50.3]} 30... Re5 {[%clk 0:00:24.6]} 31. Rfe1 {[%clk 0:00:47.4]} 31... Rde8
{[%clk 0:00:23.3]} 32. Kf1 {[%clk 0:00:45.5]} 32... g4 {[%clk 0:00:19.9]} 33. h4
{[%clk 0:00:44.3]} 33... gxh3 {[%clk 0:00:19.3]} 34. gxh3 {[%clk 0:00:45.2]}
34... Nd3 {[%clk 0:00:14]} 35. Rxe5 {[%clk 0:00:44.6]} 35... Rxe5 {[%clk
0:00:14.2]} 36. h4 {[%clk 0:00:44.9]} 36... Nf4 {[%clk 0:00:10.6]} 37. Ra3
{[%clk 0:00:36.2]} 37... Ne6 {[%clk 0:00:06.1]} 38. h5 {[%clk 0:00:34.7]} 38...
f5 {[%clk 0:00:03.4]} 39. Re3 {[%clk 0:00:34]} 1-0

[Event "*** Titled Tuesday Blitz"]
[Site "Chess.com"]
[Date "2020.11.10"]
[Round "10"]
[White "tylityli"]
[Black "akanga001"]
[Result "1-0"]
[WhiteElo "2247"]
[BlackElo "1943"]
[TimeControl "180+1"]
[EndTime "12:02:14 PST"]
[Termination "tylityli won by resignation"]

1. d4 {[%clk 0:03:00.6]} 1... d5 {[%clk 0:02:58.7]} 2. c4 {[%clk 0:03:00.8]}
2... e6 {[%clk 0:02:58.8]} 3. Nf3 {[%clk 0:02:58.2]} 3... Nf6 {[%clk 0:02:58]}
4. b3 {[%clk 0:02:55.4]} 4... c5 {[%clk 0:02:54]} 5. cxd5 {[%clk 0:02:50.1]}
5... Nxd5 {[%clk 0:02:52.3]} 6. e4 {[%clk 0:02:47.6]} 6... Nb4 {[%clk
0:02:50.8]} 7. Bb2 {[%clk 0:02:45.4]} 7... cxd4 {[%clk 0:02:49.2]} 8. Nxd4
{[%clk 0:02:40]} 8... Be7 {[%clk 0:02:48.3]} 9. a3 {[%clk 0:02:36.8]} 9... N4c6
{[%clk 0:02:39.8]} 10. Bb5 {[%clk 0:02:27.5]} 10... O-O {[%clk 0:02:37.6]} 11.
O-O {[%clk 0:02:25.1]} 11... Nxd4 {[%clk 0:02:31.9]} 12. Qxd4 {[%clk 0:02:23]}
12... Bf6 {[%clk 0:02:28]} 13. Qxd8 {[%clk 0:02:20.5]} 13... Bxd8 {[%clk
0:02:25.1]} 14. Nd2 {[%clk 0:02:18.4]} 14... Bd7 {[%clk 0:02:22.1]} 15. Be2
{[%clk 0:02:15.4]} 15... Bc6 {[%clk 0:02:20]} 16. f3 {[%clk 0:02:13.8]} 16...
Nd7 {[%clk 0:02:18.1]} 17. b4 {[%clk 0:02:10.4]} 17... a6 {[%clk 0:02:14.4]} 18.
a4 {[%clk 0:02:04.2]} 18... Bf6 {[%clk 0:02:11.5]} 19. Bxf6 {[%clk 0:01:59.3]}
19... Nxf6 {[%clk 0:02:08.5]} 20. b5 {[%clk 0:01:59.1]} 20... axb5 {[%clk
0:02:06.7]} 21. axb5 {[%clk 0:01:58.5]} 21... Bd7 {[%clk 0:02:05.8]} 22. Kf2
{[%clk 0:01:56.8]} 22... Rfc8 {[%clk 0:02:01.4]} 23. Ke3 {[%clk 0:01:42.5]}
23... Rxa1 {[%clk 0:01:56.6]} 24. Rxa1 {[%clk 0:01:41.5]} 24... Rc5 {[%clk
0:01:55.1]} 25. Ra8+ {[%clk 0:01:39.7]} 25... Be8 {[%clk 0:01:52.6]} 26. f4
{[%clk 0:01:31.5]} 26... g6 {[%clk 0:01:49.1]} 27. Nc4 {[%clk 0:01:26.2]} 27...
Kg7 {[%clk 0:01:47.5]} 28. Nd6 {[%clk 0:01:24]} 28... Bd7 {[%clk 0:01:42.3]} 29.
Nxb7 {[%clk 0:01:17.4]} 29... Rc3+ {[%clk 0:01:39.8]} 30. Kd4 {[%clk 0:01:14.2]}
30... Rc2 {[%clk 0:01:36.1]} 31. Bd3 {[%clk 0:01:09.9]} 31... Rd2 {[%clk
0:01:33]} 32. Nd6 {[%clk 0:01:05.2]} 32... Rxg2 {[%clk 0:01:19.7]} 33. b6 {[%clk
0:01:01.3]} 33... Bc6 {[%clk 0:01:18]} 34. Rc8 {[%clk 0:01:00.4]} 34... Bxe4
{[%clk 0:01:02.7]} 35. Bxe4 {[%clk 0:00:56.2]} 35... Nxe4 {[%clk 0:00:59.8]} 36.
Nxe4 {[%clk 0:00:54.4]} 36... Rb2 {[%clk 0:00:58.5]} 37. Rb8 {[%clk 0:00:45.9]}
37... h6 {[%clk 0:00:53.4]} 38. b7 {[%clk 0:00:45.7]} 38... g5 {[%clk
0:00:52.8]} 39. fxg5 {[%clk 0:00:44.2]} 39... hxg5 {[%clk 0:00:53.6]} 40. Nxg5
{[%clk 0:00:42.9]} 40... f5 {[%clk 0:00:52.2]} 41. Nxe6+ {[%clk 0:00:42.3]}
41... Kf7 {[%clk 0:00:51.8]} 42. Nc5 {[%clk 0:00:40.7]} 42... f4 {[%clk
0:00:51]} 43. Rc8 {[%clk 0:00:36.8]} 43... f3 {[%clk 0:00:46.7]} 44. b8=Q {[%clk
0:00:35.4]} 44... Rxb8 {[%clk 0:00:44.8]} 45. Rxb8 {[%clk 0:00:35.5]} 45... f2
{[%clk 0:00:44.1]} 46. Rb1 {[%clk 0:00:35.4]} 46... Kf6 {[%clk 0:00:41.1]} 47.
Ke3 {[%clk 0:00:35.2]} 47... Kg5 {[%clk 0:00:42]} 48. Kxf2 {[%clk 0:00:35.1]}
48... Kh4 {[%clk 0:00:42.9]} 49. Kg2 {[%clk 0:00:35.1]} 1-0

[Event "*** Titled Tuesday Blitz"]
[Site "Chess.com"]
[Date "2020.11.10"]
[Round "10"]
[White "Meri-Arabidze"]
[Black "djano"]
[Result "1-0"]
[WhiteElo "2623"]
[BlackElo "2484"]
[TimeControl "180+1"]
[EndTime "12:02:15 PST"]
[Termination "Meri-Arabidze won by resignation"]

1. d4 {[%clk 0:03:00.9]} 1... g6 {[%clk 0:02:59.2]} 2. c4 {[%clk 0:03:01.1]}
2... Bg7 {[%clk 0:02:57.1]} 3. Nc3 {[%clk 0:03:01.6]} 3... Nf6 {[%clk
0:02:57.1]} 4. g3 {[%clk 0:03:00.9]} 4... O-O {[%clk 0:02:54.7]} 5. Bg2 {[%clk
0:03:01.1]} 5... d6 {[%clk 0:02:54.2]} 6. e4 {[%clk 0:03:01.7]} 6... Nc6 {[%clk
0:02:51.4]} 7. Nge2 {[%clk 0:03:02.1]} 7... Bd7 {[%clk 0:02:45.3]} 8. O-O {[%clk
0:03:01.5]} 8... e5 {[%clk 0:02:43]} 9. d5 {[%clk 0:03:01.5]} 9... Ne7 {[%clk
0:02:43.3]} 10. Rb1 {[%clk 0:02:47.8]} 10... Qc8 {[%clk 0:02:41.4]} 11. b4
{[%clk 0:02:47.1]} 11... Bh3 {[%clk 0:02:41.1]} 12. c5 {[%clk 0:02:47.1]} 12...
Bxg2 {[%clk 0:02:40.9]} 13. Kxg2 {[%clk 0:02:48]} 13... Nh5 {[%clk 0:02:30.2]}
14. Be3 {[%clk 0:02:44]} 14... f5 {[%clk 0:02:29.2]} 15. f3 {[%clk 0:02:44.2]}
15... f4 {[%clk 0:02:17.4]} 16. Bf2 {[%clk 0:02:41.5]} 16... fxg3 {[%clk
0:02:16.8]} 17. hxg3 {[%clk 0:02:42.4]} 17... g5 {[%clk 0:02:03.7]} 18. g4
{[%clk 0:02:34.6]} 18... Nf4+ {[%clk 0:02:02.7]} 19. Nxf4 {[%clk 0:02:34.8]}
19... gxf4 {[%clk 0:01:50.6]} 20. Rh1 {[%clk 0:02:33.7]} 20... Rf6 {[%clk
0:01:43.5]} 21. Rc1 {[%clk 0:02:33.2]} 21... Qd7 {[%clk 0:01:32.5]} 22. Qd3
{[%clk 0:02:33]} 22... a6 {[%clk 0:01:30.8]} 23. Qc4 {[%clk 0:02:28.7]} 23...
Rg6 {[%clk 0:01:29.5]} 24. Kf1 {[%clk 0:02:24.2]} 24... Bf8 {[%clk 0:01:14.6]}
25. c6 {[%clk 0:02:22]} 25... bxc6 {[%clk 0:01:05.4]} 26. dxc6+ {[%clk
0:02:22.9]} 26... Qe6 {[%clk 0:01:05.8]} 27. Qxe6+ {[%clk 0:02:21.3]} 27... Rxe6
{[%clk 0:01:06.7]} 28. a4 {[%clk 0:02:17.2]} 28... Rb8 {[%clk 0:00:57.1]} 29. b5
{[%clk 0:02:17.2]} 29... axb5 {[%clk 0:00:57.6]} 30. axb5 {[%clk 0:02:17.8]}
30... Rg6 {[%clk 0:00:47.4]} 31. Ra1 {[%clk 0:02:16.4]} 31... d5 {[%clk
0:00:36.7]} 32. exd5 {[%clk 0:02:14.8]} 32... e4 {[%clk 0:00:35.4]} 33. fxe4
{[%clk 0:02:11.5]} 33... Rxg4 {[%clk 0:00:35.7]} 34. e5 {[%clk 0:02:06.3]} 34...
Nf5 {[%clk 0:00:34.1]} 35. b6 {[%clk 0:02:02.7]} 35... cxb6 {[%clk 0:00:33.1]}
36. d6 {[%clk 0:02:03.1]} 36... Nxd6 {[%clk 0:00:32.8]} 37. exd6 {[%clk
0:02:03]} 37... Bxd6 {[%clk 0:00:33.7]} 38. Ra7 {[%clk 0:02:00.9]} 38... Rg7
{[%clk 0:00:32.9]} 39. Rxg7+ {[%clk 0:01:48.1]} 39... Kxg7 {[%clk 0:00:33.8]}
40. Nb5 {[%clk 0:01:47.7]} 40... Rc8 {[%clk 0:00:23]} 41. Nxd6 {[%clk
0:01:37.1]} 41... Rxc6 {[%clk 0:00:22.8]} 42. Nf5+ {[%clk 0:01:37.4]} 42... Kf8
{[%clk 0:00:18.6]} 43. Rxh7 {[%clk 0:01:36.3]} 43... f3 {[%clk 0:00:18.4]} 44.
Bd4 {[%clk 0:01:29.7]} 44... b5 {[%clk 0:00:14.6]} 45. Kf2 {[%clk 0:01:23.4]}
45... b4 {[%clk 0:00:13.1]} 46. Kxf3 {[%clk 0:01:22.5]} 46... b3 {[%clk
0:00:13.3]} 47. Rb7 {[%clk 0:01:22.1]} 47... Rc1 {[%clk 0:00:08.4]} 48. Rxb3
{[%clk 0:01:19.8]} 48... Kf7 {[%clk 0:00:08.7]} 49. Rb6 {[%clk 0:01:16.2]} 49...
Rf1+ {[%clk 0:00:08.1]} 50. Ke4 {[%clk 0:01:16.2]} 50... Re1+ {[%clk 0:00:08.2]}
51. Kd5 {[%clk 0:01:15]} 51... Rf1 {[%clk 0:00:07.5]} 52. Rf6+ {[%clk
0:01:14.2]} 52... Ke8 {[%clk 0:00:06]} 53. Nd6+ {[%clk 0:01:12.8]} 1-0

[Event "*** Titled Tuesday Blitz"]
[Site "Chess.com"]
[Date "2020.11.10"]
[Round "10"]
[White "Fortitudine"]
[Black "PIwan"]
[Result "0-1"]
[WhiteElo "2312"]
[BlackElo "2543"]
[TimeControl "180+1"]
[EndTime "12:02:18 PST"]
[Termination "PIwan won on time"]

1. c4 {[%clk 0:03:00.9]} 1... Nf6 {[%clk 0:02:54.9]} 2. g3 {[%clk 0:03:01.1]}
2... c6 {[%clk 0:02:52.5]} 3. Bg2 {[%clk 0:03:00.8]} 3... g6 {[%clk 0:02:53.1]}
4. b3 {[%clk 0:02:59.9]} 4... Bg7 {[%clk 0:02:52.7]} 5. Bb2 {[%clk 0:02:59.9]}
5... O-O {[%clk 0:02:53.3]} 6. Nf3 {[%clk 0:02:59.4]} 6... d5 {[%clk 0:02:53.8]}
7. O-O {[%clk 0:02:53.6]} 7... a5 {[%clk 0:02:54.3]} 8. a3 {[%clk 0:02:21.4]}
8... a4 {[%clk 0:02:48]} 9. cxd5 {[%clk 0:02:21.6]} 9... cxd5 {[%clk 0:02:47.6]}
10. b4 {[%clk 0:02:19.6]} 10... Nc6 {[%clk 0:02:35.9]} 11. Nc3 {[%clk
0:02:09.8]} 11... Ne4 {[%clk 0:02:36]} 12. Nxa4 {[%clk 0:01:59.5]} 12... Bxb2
{[%clk 0:01:54.8]} 13. Nxb2 {[%clk 0:02:00.4]} 13... Bf5 {[%clk 0:01:50.3]} 14.
d3 {[%clk 0:01:39.1]} 14... Nc3 {[%clk 0:01:45.4]} 15. Qd2 {[%clk 0:01:28.4]}
15... Nb5 {[%clk 0:01:44.7]} 16. a4 {[%clk 0:01:03]} 16... Nbd4 {[%clk 0:01:45]}
17. Nxd4 {[%clk 0:01:02.8]} 17... Nxd4 {[%clk 0:01:45.9]} 18. Qd1 {[%clk
0:00:59.9]} 18... Qd6 {[%clk 0:01:24.6]} 19. e4 {[%clk 0:00:37.1]} 19... Be6
{[%clk 0:01:14.9]} 20. b5 {[%clk 0:00:19.9]} 20... dxe4 {[%clk 0:01:07.4]} 21.
dxe4 {[%clk 0:00:16.9]} 21... Bb3 {[%clk 0:01:07.8]} 22. Qd3 {[%clk 0:00:15]}
22... Bc2 {[%clk 0:01:01.2]} 23. Qe3 {[%clk 0:00:13.2]} 23... e5 {[%clk
0:00:58.9]} 24. Rac1 {[%clk 0:00:11.2]} 24... Bxa4 {[%clk 0:00:54.4]} 25. Nxa4
{[%clk 0:00:10]} 25... Rxa4 {[%clk 0:00:55.3]} 26. Rfd1 {[%clk 0:00:10.1]} 26...
Ra3 {[%clk 0:00:46.9]} 27. Rd3 {[%clk 0:00:07.3]} 27... Nf3+ {[%clk 0:00:44.1]}
28. Qxf3 {[%clk 0:00:04.4]} 28... Rxd3 {[%clk 0:00:43]} 29. Qe2 {[%clk
0:00:04.3]} 29... Rd8 {[%clk 0:00:43.2]} 30. h4 {[%clk 0:00:03.9]} 30... Rd1+
{[%clk 0:00:43.1]} 31. Rxd1 {[%clk 0:00:04.3]} 31... Qxd1+ {[%clk 0:00:44]} 32.
Qxd1 {[%clk 0:00:04.6]} 32... Rxd1+ {[%clk 0:00:44.9]} 33. Bf1 {[%clk 0:00:05]}
33... Re1 {[%clk 0:00:45.3]} 34. f3 {[%clk 0:00:05.2]} 34... Rb1 {[%clk
0:00:43.8]} 35. Kf2 {[%clk 0:00:05.5]} 35... Kf8 {[%clk 0:00:43]} 36. Be2 {[%clk
0:00:04.9]} 36... Ke7 {[%clk 0:00:43.1]} 37. Ke3 {[%clk 0:00:04.7]} 37... Kd6
{[%clk 0:00:42.1]} 38. Bd3 {[%clk 0:00:04.7]} 38... Rb3 {[%clk 0:00:40.6]} 39.
f4 {[%clk 0:00:03.5]} 39... f6 {[%clk 0:00:39.2]} 40. Kd2 {[%clk 0:00:01.1]}
40... Kc5 {[%clk 0:00:36.3]} 0-1

[Event "*** Titled Tuesday Blitz"]
[Site "Chess.com"]
[Date "2020.11.10"]
[Round "10"]
[White "FMOlexandrProhorov"]
[Black "ErikRonka"]
[Result "0-1"]
[WhiteElo "2153"]
[BlackElo "2396"]
[TimeControl "180+1"]
[EndTime "12:02:23 PST"]
[Termination "ErikRonka won on time"]

1. e4 {[%clk 0:03:00.9]} 1... c5 {[%clk 0:02:58.3]} 2. c3 {[%clk 0:02:58.7]}
2... Nf6 {[%clk 0:02:57.6]} 3. e5 {[%clk 0:02:58.1]} 3... Nd5 {[%clk 0:02:58]}
4. Bc4 {[%clk 0:02:58.5]} 4... e6 {[%clk 0:02:55.2]} 5. Nf3 {[%clk 0:02:56.8]}
5... d6 {[%clk 0:02:49.4]} 6. exd6 {[%clk 0:02:45.7]} 6... Bxd6 {[%clk
0:02:50.3]} 7. d4 {[%clk 0:02:45.7]} 7... cxd4 {[%clk 0:02:48.2]} 8. Qxd4 {[%clk
0:02:43]} 8... O-O {[%clk 0:02:43.7]} 9. O-O {[%clk 0:02:42.3]} 9... Nc6 {[%clk
0:02:41]} 10. Qe4 {[%clk 0:02:41.3]} 10... Nce7 {[%clk 0:02:17.3]} 11. Rd1
{[%clk 0:02:27.8]} 11... Qc7 {[%clk 0:02:12.6]} 12. Bd3 {[%clk 0:02:06.2]} 12...
Ng6 {[%clk 0:02:07.9]} 13. h4 {[%clk 0:02:04.7]} 13... Nf6 {[%clk 0:02:00.6]}
14. Qe2 {[%clk 0:02:01.3]} 14... b6 {[%clk 0:01:58.3]} 15. Bg5 {[%clk
0:01:58.8]} 15... Nf4 {[%clk 0:01:43.1]} 16. Bxf4 {[%clk 0:01:49.9]} 16... Bxf4
{[%clk 0:01:44]} 17. Na3 {[%clk 0:01:34.4]} 17... Bb7 {[%clk 0:01:37.8]} 18. Nb5
{[%clk 0:01:33.4]} 18... Qe7 {[%clk 0:01:34.8]} 19. Nbd4 {[%clk 0:01:23.3]}
19... a6 {[%clk 0:01:24.9]} 20. a4 {[%clk 0:01:15.4]} 20... Rfd8 {[%clk
0:01:14.7]} 21. Bc2 {[%clk 0:00:54.9]} 21... Re8 {[%clk 0:01:06.3]} 22. Bb3
{[%clk 0:00:53]} 22... Nd5 {[%clk 0:00:57.9]} 23. g3 {[%clk 0:00:48.5]} 23...
Bd6 {[%clk 0:00:54.6]} 24. Re1 {[%clk 0:00:43.6]} 24... Bc5 {[%clk 0:00:54.4]}
25. Rad1 {[%clk 0:00:42.6]} 25... Qc7 {[%clk 0:00:52.6]} 26. Bc2 {[%clk
0:00:40.2]} 26... Nf6 {[%clk 0:00:52.1]} 27. b4 {[%clk 0:00:31.6]} 27... Bf8
{[%clk 0:00:51.2]} 28. c4 {[%clk 0:00:27.3]} 28... Bxb4 {[%clk 0:00:50.2]} 29.
Rf1 {[%clk 0:00:25.6]} 29... Rad8 {[%clk 0:00:48.9]} 30. Ne5 {[%clk 0:00:15]}
30... Bc5 {[%clk 0:00:45.8]} 31. Nb3 {[%clk 0:00:12.4]} 31... Bd6 {[%clk
0:00:42.5]} 32. f4 {[%clk 0:00:10.9]} 32... Nd7 {[%clk 0:00:36.3]} 33. Rde1
{[%clk 0:00:06.9]} 33... Nf8 {[%clk 0:00:29.8]} 34. Kh2 {[%clk 0:00:06.4]} 34...
Rc8 {[%clk 0:00:28.5]} 35. Bd3 {[%clk 0:00:06]} 35... Rcd8 {[%clk 0:00:19.8]}
36. h5 {[%clk 0:00:04.8]} 36... h6 {[%clk 0:00:19.4]} 37. Kh3 {[%clk 0:00:03.9]}
37... Nd7 {[%clk 0:00:19.3]} 38. Nxd7 {[%clk 0:00:01.5]} 38... Rxd7 {[%clk
0:00:19.3]} 0-1

[Event "*** Titled Tuesday Blitz"]
[Site "Chess.com"]
[Date "2020.11.10"]
[Round "10"]
[White "ljuks68"]
[Black "Savagelittlemole"]
[Result "0-1"]
[WhiteElo "2387"]
[BlackElo "2574"]
[TimeControl "180+1"]
[EndTime "12:02:24 PST"]
[Termination "Savagelittlemole won on time"]

1. e4 {[%clk 0:03:00.9]} 1... c5 {[%clk 0:02:59]} 2. Nf3 {[%clk 0:03:00.1]} 2...
d6 {[%clk 0:02:59.6]} 3. d4 {[%clk 0:03:00.1]} 3... cxd4 {[%clk 0:03:00.1]} 4.
Nxd4 {[%clk 0:03:00.7]} 4... Nf6 {[%clk 0:02:59.7]} 5. Nc3 {[%clk 0:03:00.9]}
5... a6 {[%clk 0:03:00.2]} 6. Bg5 {[%clk 0:02:59.6]} 6... Nbd7 {[%clk 0:03:00]}
7. Qe2 {[%clk 0:02:59.6]} 7... h6 {[%clk 0:02:58.7]} 8. Bd2 {[%clk 0:02:58.5]}
8... e5 {[%clk 0:02:56.4]} 9. Nf5 {[%clk 0:02:55.5]} 9... Nc5 {[%clk 0:02:56.1]}
10. Ng3 {[%clk 0:02:42.8]} 10... Be7 {[%clk 0:02:52.5]} 11. O-O-O {[%clk
0:02:39.9]} 11... O-O {[%clk 0:02:51.8]} 12. f4 {[%clk 0:02:31.4]} 12... Bg4
{[%clk 0:02:50.6]} 13. Qe1 {[%clk 0:02:28.6]} 13... Bxd1 {[%clk 0:02:50.1]} 14.
Qxd1 {[%clk 0:02:29]} 14... b5 {[%clk 0:02:44]} 15. a3 {[%clk 0:02:19]} 15...
Rb8 {[%clk 0:02:35.2]} 16. Bd3 {[%clk 0:02:17.2]} 16... Nxd3+ {[%clk 0:02:33.2]}
17. cxd3 {[%clk 0:02:16.4]} 17... b4 {[%clk 0:02:30.1]} 18. axb4 {[%clk
0:02:15.1]} 18... Rxb4 {[%clk 0:02:30.5]} 19. Nf5 {[%clk 0:02:15.6]} 19... Rb7
{[%clk 0:02:13.7]} 20. Qf3 {[%clk 0:02:06.7]} 20... Qb6 {[%clk 0:02:00.2]} 21.
Nd1 {[%clk 0:02:00.1]} 21... Rc8+ {[%clk 0:01:52.6]} 22. Bc3 {[%clk 0:01:59.3]}
22... Bf8 {[%clk 0:01:38.1]} 23. g4 {[%clk 0:01:47.7]} 23... Qa5 {[%clk
0:01:10.6]} 24. g5 {[%clk 0:01:32.3]} 24... Rxc3+ {[%clk 0:00:56.1]} 25. Nxc3
{[%clk 0:01:10.4]} 25... Qa1+ {[%clk 0:00:54.9]} 26. Kd2 {[%clk 0:01:10]} 26...
Qxb2+ {[%clk 0:00:46.4]} 27. Ke3 {[%clk 0:01:04.7]} 27... exf4+ {[%clk
0:00:46.5]} 28. Qxf4 {[%clk 0:00:57.3]} 28... hxg5 {[%clk 0:00:46.2]} 29. Qxg5
{[%clk 0:00:50.6]} 29... Qxc3 {[%clk 0:00:39.3]} 30. Rg1 {[%clk 0:00:12.6]}
30... g6 {[%clk 0:00:21.7]} 31. Nh6+ {[%clk 0:00:11.5]} 31... Bxh6 {[%clk
0:00:19.7]} 32. Qxh6 {[%clk 0:00:10.8]} 32... Rb2 {[%clk 0:00:14.7]} 33. Rxg6+
{[%clk 0:00:08.1]} 33... fxg6 {[%clk 0:00:15.6]} 34. Qxg6+ {[%clk 0:00:08.2]}
34... Kf8 {[%clk 0:00:15]} 35. Qh6+ {[%clk 0:00:07.9]} 35... Ke7 {[%clk
0:00:15.1]} 36. Qg7+ {[%clk 0:00:04.6]} 36... Ke6 {[%clk 0:00:15.1]} 0-1